[Event "*** Titled Tuesday Blitz"]
[Site "Chess.com"]
[Date "2019.01.01"]
[Round "2"]
[White "walkingcreep"]
[Black "OparinGrigoriy"]
[Result "1-0"]
[WhiteElo "2596"]
[BlackElo "2919"]
[TimeControl "180+2"]
[EndTime "13:19:56 PST"]
[Termination "walkingcreep won by resignation"]

1. d4 {[%clk 0:03:01.9]} 1... Nf6 {[%clk 0:03:00.8]} 2. c4 {[%clk 0:03:02.5]}
2... e6 {[%clk 0:03:02.7]} 3. Nc3 {[%clk 0:03:03.5]} 3... Bb4 {[%clk 0:03:03.7]}
4. e3 {[%clk 0:03:02.7]} 4... O-O {[%clk 0:03:03.8]} 5. Ne2 {[%clk 0:03:04]}
5... d5 {[%clk 0:03:04.7]} 6. a3 {[%clk 0:03:04.6]} 6... Bd6 {[%clk 0:03:06.1]}
7. cxd5 {[%clk 0:03:03.2]} 7... exd5 {[%clk 0:03:07.1]} 8. Ng3 {[%clk
0:03:04.4]} 8... Re8 {[%clk 0:03:08.1]} 9. Bd3 {[%clk 0:03:04.9]} 9... a5 {[%clk
0:03:07.8]} 10. O-O {[%clk 0:03:05]} 10... Na6 {[%clk 0:03:07.9]} 11. Nce2
{[%clk 0:02:36]} 11... Bd7 {[%clk 0:03:03.7]} 12. Bd2 {[%clk 0:02:34.4]} 12...
c5 {[%clk 0:03:04.8]} 13. dxc5 {[%clk 0:02:32.9]} 13... Nxc5 {[%clk 0:03:06.7]}
14. Bc2 {[%clk 0:02:32.4]} 14... Nce4 {[%clk 0:03:06.4]} 15. Nd4 {[%clk
0:02:31.1]} 15... Nxd2 {[%clk 0:03:05.4]} 16. Qxd2 {[%clk 0:02:31.8]} 16... g6
{[%clk 0:03:06.7]} 17. Rac1 {[%clk 0:02:26.4]} 17... h5 {[%clk 0:03:07.9]} 18.
h3 {[%clk 0:02:25.6]} 18... h4 {[%clk 0:03:09.3]} 19. Nge2 {[%clk 0:02:26.5]}
19... Qe7 {[%clk 0:03:10.7]} 20. Nf4 {[%clk 0:02:23.4]} 20... g5 {[%clk
0:03:05.9]} 21. Nfe2 {[%clk 0:02:15.2]} 21... Ne4 {[%clk 0:02:54.9]} 22. Bxe4
{[%clk 0:02:13.8]} 22... dxe4 {[%clk 0:02:56.8]} 23. Rfd1 {[%clk 0:02:06.7]}
23... Rad8 {[%clk 0:02:56.9]} 24. Qxa5 {[%clk 0:02:03.4]} 24... Qf6 {[%clk
0:02:52.3]} 25. Nb5 {[%clk 0:01:47.2]} 25... Bb8 {[%clk 0:02:43.7]} 26. Nc7
{[%clk 0:01:46.2]} 26... Rf8 {[%clk 0:02:42]} 27. Rd5 {[%clk 0:01:36.2]} 27...
b5 {[%clk 0:02:30.7]} 28. Rcc5 {[%clk 0:01:16.4]} 28... Bc8 {[%clk 0:01:07.4]}
29. Rxg5+ {[%clk 0:01:13.4]} 29... Kh7 {[%clk 0:01:07.4]} 30. Rh5+ {[%clk
0:01:10.7]} 30... Kg7 {[%clk 0:01:07.4]} 31. Rcg5+ {[%clk 0:01:07.3]} 31... Qxg5
{[%clk 0:01:08.7]} 32. Rxg5+ {[%clk 0:01:08]} 32... Kh6 {[%clk 0:01:10.2]} 33.
Rxb5 {[%clk 0:00:53.2]} 33... Rd1+ {[%clk 0:01:08]} 34. Kh2 {[%clk 0:00:53.1]}
1-0

[Event "*** Titled Tuesday Blitz"]
[Site "Chess.com"]
[Date "2019.01.01"]
[Round "2"]
[White "Supernotar"]
[Black "Gr3egor"]
[Result "1-0"]
[WhiteElo "2412"]
[BlackElo "2464"]
[TimeControl "180+2"]
[EndTime "13:19:56 PST"]
[Termination "Supernotar won by resignation"]

1. d4 {[%clk 0:02:57.6]} 1... Nf6 {[%clk 0:02:59.9]} 2. c4 {[%clk 0:02:58.1]}
2... g6 {[%clk 0:03:01]} 3. Nc3 {[%clk 0:02:58.8]} 3... Bg7 {[%clk 0:03:02.6]}
4. e4 {[%clk 0:02:59.9]} 4... d6 {[%clk 0:03:03.2]} 5. Be2 {[%clk 0:03:01.5]}
5... O-O {[%clk 0:03:04]} 6. Nf3 {[%clk 0:03:03]} 6... e5 {[%clk 0:03:04.9]} 7.
O-O {[%clk 0:03:04.2]} 7... Nc6 {[%clk 0:03:06.1]} 8. d5 {[%clk 0:03:05.4]} 8...
Ne7 {[%clk 0:03:07.6]} 9. Ne1 {[%clk 0:03:06.8]} 9... Nd7 {[%clk 0:03:05.3]} 10.
Be3 {[%clk 0:03:08.7]} 10... f5 {[%clk 0:03:06.1]} 11. f3 {[%clk 0:03:10.1]}
11... f4 {[%clk 0:03:05.8]} 12. Bf2 {[%clk 0:03:11.5]} 12... g5 {[%clk
0:03:07.5]} 13. a4 {[%clk 0:03:12]} 13... h5 {[%clk 0:03:05]} 14. a5 {[%clk
0:03:12.5]} 14... Nf6 {[%clk 0:03:04]} 15. c5 {[%clk 0:03:13.8]} 15... g4 {[%clk
0:03:03.6]} 16. cxd6 {[%clk 0:03:14.8]} 16... cxd6 {[%clk 0:03:04.6]} 17. Nb5
{[%clk 0:03:16.1]} 17... Ng6 {[%clk 0:02:44.3]} 18. Bxa7 {[%clk 0:03:16]} 18...
g3 {[%clk 0:02:44.9]} 19. Bb6 {[%clk 0:03:16.5]} 19... Qe7 {[%clk 0:02:42.4]}
20. Nc7 {[%clk 0:03:17.7]} 20... Ne8 {[%clk 0:01:41.7]} 21. Ne6 {[%clk
0:03:17.1]} 21... Qh4 {[%clk 0:01:40.8]} 22. h3 {[%clk 0:03:17.7]} 22... Rf6
{[%clk 0:01:17.3]} 23. Qb3 {[%clk 0:03:07.3]} 23... Nf8 {[%clk 0:01:16.2]} 24.
Bc4 {[%clk 0:03:07.1]} 24... Nh7 {[%clk 0:00:46.3]} 25. Bd8 {[%clk 0:02:30]}
25... Bxe6 {[%clk 0:00:37.9]} 26. Bxf6 {[%clk 0:02:29.7]} 26... Bxf6 {[%clk
0:00:18.1]} 27. dxe6 {[%clk 0:02:30.9]} 27... Ng5 {[%clk 0:00:19.5]} 28. e7+
{[%clk 0:02:21.3]} 28... Kg7 {[%clk 0:00:18.5]} 29. Be6 {[%clk 0:02:22]} 29...
Bxe7 {[%clk 0:00:18.8]} 30. Qxb7 {[%clk 0:02:18.6]} 30... Nxe6 {[%clk
0:00:20.1]} 31. Qxa8 {[%clk 0:02:19.5]} 31... Kf7 {[%clk 0:00:16.7]} 32. a6
{[%clk 0:02:16.9]} 32... N8c7 {[%clk 0:00:17.7]} 33. Qc8 {[%clk 0:02:17.3]}
33... d5 {[%clk 0:00:14.3]} 34. a7 {[%clk 0:02:15.7]} 34... Bc5+ {[%clk
0:00:14.4]} 35. Kh1 {[%clk 0:02:16.7]} 35... Na8 {[%clk 0:00:06.4]} 36. Qxa8
{[%clk 0:02:10.9]} 36... Ng5 {[%clk 0:00:07.3]} 37. Qb7+ {[%clk 0:02:11.6]}
37... Be7 {[%clk 0:00:07.8]} 38. Qxd5+ {[%clk 0:02:12.3]} 38... Kf6 {[%clk
0:00:08.7]} 39. Qd7 {[%clk 0:02:12.7]} 39... Nxh3 {[%clk 0:00:09.2]} 1-0

[Event "*** Titled Tuesday Blitz"]
[Site "Chess.com"]
[Date "2019.01.01"]
[Round "2"]
[White "nurgyulsalimova"]
[Black "ASVZ"]
[Result "1-0"]
[WhiteElo "2462"]
[BlackElo "2266"]
[TimeControl "180+2"]
[EndTime "13:20:04 PST"]
[Termination "nurgyulsalimova won by resignation"]

1. e4 {[%clk 0:03:01.9]} 1... e6 {[%clk 0:03:01.1]} 2. d4 {[%clk 0:03:01.7]}
2... d5 {[%clk 0:03:02.7]} 3. Nc3 {[%clk 0:02:53.1]} 3... Bb4 {[%clk 0:03:03]}
4. e5 {[%clk 0:02:53.3]} 4... c5 {[%clk 0:03:02.6]} 5. a3 {[%clk 0:02:53.8]}
5... Ba5 {[%clk 0:03:04.2]} 6. b4 {[%clk 0:02:48.5]} 6... cxd4 {[%clk
0:03:05.4]} 7. Nb5 {[%clk 0:02:47.6]} 7... Bc7 {[%clk 0:03:06.3]} 8. f4 {[%clk
0:02:46.6]} 8... a5 {[%clk 0:03:04.9]} 9. Bd2 {[%clk 0:02:42.6]} 9... Nh6 {[%clk
0:03:05.1]} 10. Bd3 {[%clk 0:02:36.2]} 10... Nc6 {[%clk 0:03:04.2]} 11. Nf3
{[%clk 0:02:35]} 11... Nf5 {[%clk 0:03:03.2]} 12. O-O {[%clk 0:02:27.6]} 12...
axb4 {[%clk 0:02:57.2]} 13. axb4 {[%clk 0:02:25.5]} 13... Rxa1 {[%clk
0:02:57.9]} 14. Qxa1 {[%clk 0:02:25.9]} 14... O-O {[%clk 0:02:59.8]} 15. Nxc7
{[%clk 0:02:03.4]} 15... Qxc7 {[%clk 0:03:01.7]} 16. b5 {[%clk 0:02:04.7]} 16...
Nce7 {[%clk 0:03:02.2]} 17. Qa7 {[%clk 0:02:05.9]} 17... Bd7 {[%clk 0:02:56.7]}
18. Nxd4 {[%clk 0:02:04]} 18... Rc8 {[%clk 0:02:40.5]} 19. Nb3 {[%clk
0:01:52.5]} 19... b6 {[%clk 0:02:31.3]} 20. Ra1 {[%clk 0:01:49.7]} 20... d4
{[%clk 0:01:55.5]} 21. Qxc7 {[%clk 0:01:40.8]} 21... Rxc7 {[%clk 0:01:57.4]} 22.
g4 {[%clk 0:01:38.9]} 22... Ne3 {[%clk 0:01:56.8]} 23. Nxd4 {[%clk 0:01:38.5]}
23... Nxg4 {[%clk 0:01:56.4]} 24. Ra8+ {[%clk 0:01:37]} 24... Rc8 {[%clk
0:01:57.7]} 25. Ra7 {[%clk 0:01:35.4]} 25... Rd8 {[%clk 0:01:53.6]} 26. Rb7
{[%clk 0:01:35.7]} 26... Nd5 {[%clk 0:01:50.6]} 27. Nc6 {[%clk 0:01:30.6]} 27...
Bxc6 {[%clk 0:01:47.4]} 28. bxc6 {[%clk 0:01:32.5]} 28... g5 {[%clk 0:01:44.8]}
29. c4 {[%clk 0:01:20.2]} 29... Nc7 {[%clk 0:01:37.2]} 30. Rxc7 {[%clk
0:01:11.7]} 30... Rxd3 {[%clk 0:01:38.2]} 31. Rd7 {[%clk 0:01:11]} 31... Ra3
{[%clk 0:01:05.6]} 32. c7 {[%clk 0:01:04.1]} 32... gxf4 {[%clk 0:01:06.6]} 33.
c8=Q+ {[%clk 0:01:04.2]} 33... Kg7 {[%clk 0:01:08.2]} 34. Bxf4 {[%clk
0:00:49.7]} 34... Kg6 {[%clk 0:01:04.8]} 35. Qg8+ {[%clk 0:00:49.6]} 35... Kf5
{[%clk 0:01:06.7]} 36. Rxf7+ {[%clk 0:00:49.6]} 36... Ke4 {[%clk 0:01:08.6]} 37.
Qxg4 {[%clk 0:00:50.1]} 1-0

[Event "*** Titled Tuesday Blitz"]
[Site "Chess.com"]
[Date "2019.01.01"]
[Round "2"]
[White "Alexander_Donchenko"]
[Black "tigra"]
[Result "0-1"]
[WhiteElo "2645"]
[BlackElo "2780"]
[TimeControl "180+2"]
[EndTime "13:20:07 PST"]
[Termination "tigra won by resignation"]

1. e4 {[%clk 0:03:01.9]} 1... e6 {[%clk 0:03:00.7]} 2. d4 {[%clk 0:03:02.6]}
2... d5 {[%clk 0:03:02.6]} 3. e5 {[%clk 0:03:03.9]} 3... c5 {[%clk 0:03:03]} 4.
c3 {[%clk 0:03:05.3]} 4... Nc6 {[%clk 0:03:04.9]} 5. Nf3 {[%clk 0:03:06.1]} 5...
Bd7 {[%clk 0:03:06.3]} 6. Be2 {[%clk 0:03:04.2]} 6... Nge7 {[%clk 0:03:05.5]} 7.
O-O {[%clk 0:03:03]} 7... Nf5 {[%clk 0:03:06.6]} 8. Na3 {[%clk 0:03:03.8]} 8...
h5 {[%clk 0:03:03.5]} 9. Nc2 {[%clk 0:03:02.6]} 9... cxd4 {[%clk 0:03:04.4]} 10.
cxd4 {[%clk 0:03:02.3]} 10... Be7 {[%clk 0:03:05]} 11. Bd2 {[%clk 0:02:56.8]}
11... g5 {[%clk 0:03:05.3]} 12. Bc3 {[%clk 0:02:50.4]} 12... g4 {[%clk
0:03:04.9]} 13. Nfe1 {[%clk 0:02:51.4]} 13... b5 {[%clk 0:02:59.2]} 14. Nd3
{[%clk 0:02:50.6]} 14... a5 {[%clk 0:02:58.7]} 15. a3 {[%clk 0:02:44.6]} 15...
Rc8 {[%clk 0:02:51]} 16. Qd2 {[%clk 0:02:42.1]} 16... Bg5 {[%clk 0:02:50]} 17.
Qe1 {[%clk 0:02:40.6]} 17... Rg8 {[%clk 0:02:45.3]} 18. Nc5 {[%clk 0:02:38.5]}
18... Nxe5 {[%clk 0:02:42.7]} 19. Bxa5 {[%clk 0:02:32.4]} 19... Qe7 {[%clk
0:02:42.1]} 20. Nxd7 {[%clk 0:01:45.1]} 20... Nxd7 {[%clk 0:02:30]} 21. Bd3
{[%clk 0:01:35.9]} 21... Rxc2 {[%clk 0:02:07.8]} 22. Bxc2 {[%clk 0:01:31.7]}
22... Nxd4 {[%clk 0:02:09.3]} 23. Bd3 {[%clk 0:01:22.6]} 23... Nf3+ {[%clk
0:01:54.6]} 24. gxf3 {[%clk 0:01:21.6]} 24... Bf4 {[%clk 0:01:55.7]} 25. Bd2
{[%clk 0:00:55.2]} 25... Bxh2+ {[%clk 0:01:21.5]} 26. Kg2 {[%clk 0:00:11.3]}
26... Qh4 {[%clk 0:01:14.3]} 0-1

[Event "*** Titled Tuesday Blitz"]
[Site "Chess.com"]
[Date "2019.01.01"]
[Round "2"]
[White "pulvettd"]
[Black "Vegan4future"]
[Result "1-0"]
[WhiteElo "2500"]
[BlackElo "2332"]
[TimeControl "180+2"]
[EndTime "13:20:12 PST"]
[Termination "pulvettd won by checkmate"]

1. d4 {[%clk 0:03:01.9]} 1... Nf6 {[%clk 0:02:56.7]} 2. c4 {[%clk 0:03:00.6]}
2... g6 {[%clk 0:02:53.3]} 3. Nc3 {[%clk 0:02:58.8]} 3... Bg7 {[%clk 0:02:51.5]}
4. e4 {[%clk 0:02:58.8]} 4... d6 {[%clk 0:02:53]} 5. h3 {[%clk 0:02:59.9]} 5...
O-O {[%clk 0:02:54]} 6. Be3 {[%clk 0:02:59.6]} 6... Na6 {[%clk 0:02:36.1]} 7. g4
{[%clk 0:02:57]} 7... c5 {[%clk 0:02:36.7]} 8. d5 {[%clk 0:02:55.3]} 8... e6
{[%clk 0:02:34.9]} 9. Nge2 {[%clk 0:02:53.8]} 9... exd5 {[%clk 0:02:35.9]} 10.
exd5 {[%clk 0:02:52.7]} 10... Re8 {[%clk 0:02:37]} 11. Qd2 {[%clk 0:02:50.9]}
11... Rb8 {[%clk 0:02:21.8]} 12. Bg2 {[%clk 0:02:46.2]} 12... Nc7 {[%clk
0:02:19.9]} 13. a4 {[%clk 0:02:46.1]} 13... a6 {[%clk 0:02:20.6]} 14. O-O {[%clk
0:02:35.4]} 14... b5 {[%clk 0:02:21.2]} 15. axb5 {[%clk 0:02:34.4]} 15... axb5
{[%clk 0:02:23.1]} 16. Bg5 {[%clk 0:02:21.8]} 16... bxc4 {[%clk 0:02:15.9]} 17.
Ng3 {[%clk 0:02:20.5]} 17... Qd7 {[%clk 0:02:09.1]} 18. Qf4 {[%clk 0:02:19.2]}
18... Nxg4 {[%clk 0:01:50.1]} 19. hxg4 {[%clk 0:02:16.1]} 19... Be5 {[%clk
0:01:51.5]} 20. Qxc4 {[%clk 0:02:06.7]} 20... Qxg4 {[%clk 0:01:35.5]} 21. Qxg4
{[%clk 0:02:08.6]} 21... Bxg4 {[%clk 0:01:36.7]} 22. Nge4 {[%clk 0:02:04.5]}
22... Kg7 {[%clk 0:01:30.7]} 23. Ra7 {[%clk 0:01:55.1]} 23... Nb5 {[%clk
0:01:29.8]} 24. Nxb5 {[%clk 0:01:51.3]} 24... Rxb5 {[%clk 0:01:31.7]} 25. f4
{[%clk 0:01:49.7]} 25... Bd4+ {[%clk 0:01:32.1]} 26. Kh1 {[%clk 0:01:51]} 26...
Rxb2 {[%clk 0:01:31.8]} 27. Nxd6 {[%clk 0:01:45.7]} 27... Rf8 {[%clk 0:01:16.8]}
28. Be7 {[%clk 0:01:43.1]} 28... Rfb8 {[%clk 0:01:14.1]} 29. Nxf7 {[%clk
0:01:40.4]} 29... R8b3 {[%clk 0:00:29.1]} 30. Ng5 {[%clk 0:01:27.8]} 30... Kg8
{[%clk 0:00:22]} 31. d6 {[%clk 0:01:20.9]} 31... h6 {[%clk 0:00:21.9]} 32. Bd5+
{[%clk 0:01:16.9]} 32... Kh8 {[%clk 0:00:20.3]} 33. Bf6+ {[%clk 0:01:17.2]}
33... Bxf6 {[%clk 0:00:20.5]} 34. Rh7# {[%clk 0:01:18.1]} 1-0

[Event "*** Titled Tuesday Blitz"]
[Site "Chess.com"]
[Date "2019.01.01"]
[Round "2"]
[White "ckgchess"]
[Black "Justinz"]
[Result "1-0"]
[WhiteElo "2618"]
[BlackElo "2373"]
[TimeControl "180+2"]
[EndTime "13:20:12 PST"]
[Termination "ckgchess won by resignation"]

1. e4 {[%clk 0:03:00.9]} 1... c5 {[%clk 0:02:59.9]} 2. c3 {[%clk 0:02:58.4]}
2... Nf6 {[%clk 0:02:56.1]} 3. e5 {[%clk 0:02:59.5]} 3... Nd5 {[%clk 0:02:51.5]}
4. d4 {[%clk 0:02:58.9]} 4... d6 {[%clk 0:02:50.1]} 5. c4 {[%clk 0:02:52.1]}
5... Nb6 {[%clk 0:02:50.7]} 6. dxc5 {[%clk 0:02:52.5]} 6... dxc5 {[%clk
0:02:52.6]} 7. Qxd8+ {[%clk 0:02:53.6]} 7... Kxd8 {[%clk 0:02:53.9]} 8. Nf3
{[%clk 0:02:47]} 8... Bg4 {[%clk 0:02:53.5]} 9. Ng5 {[%clk 0:02:42]} 9... Bh5
{[%clk 0:02:52.3]} 10. Be2 {[%clk 0:02:33.6]} 10... Bg6 {[%clk 0:02:52.3]} 11.
Bf3 {[%clk 0:02:30.6]} 11... Nc6 {[%clk 0:02:52.6]} 12. Bxc6 {[%clk 0:02:31.6]}
12... bxc6 {[%clk 0:02:54.5]} 13. b3 {[%clk 0:02:32.1]} 13... h6 {[%clk
0:02:53.2]} 14. Nf3 {[%clk 0:02:32.1]} 14... a5 {[%clk 0:02:54]} 15. Be3 {[%clk
0:02:23]} 15... e6 {[%clk 0:02:51.7]} 16. Nc3 {[%clk 0:02:20.4]} 16... a4 {[%clk
0:02:52.1]} 17. O-O-O+ {[%clk 0:02:14.1]} 17... Kc7 {[%clk 0:02:53]} 18. Kb2
{[%clk 0:02:15.4]} 18... Be7 {[%clk 0:02:52.5]} 19. Nd2 {[%clk 0:02:07.2]} 19...
Rhb8 {[%clk 0:02:25.8]} 20. Rhe1 {[%clk 0:01:56]} 20... Ra5 {[%clk 0:01:54.8]}
21. g4 {[%clk 0:01:30.1]} 21... h5 {[%clk 0:01:31.1]} 22. h3 {[%clk 0:01:31]}
22... hxg4 {[%clk 0:01:22.9]} 23. hxg4 {[%clk 0:01:32.9]} 23... Bd3 {[%clk
0:01:24.3]} 24. Kc1 {[%clk 0:01:25.6]} 24... Bg6 {[%clk 0:01:16]} 25. f4 {[%clk
0:01:24.3]} 25... axb3 {[%clk 0:01:15.6]} 26. axb3 {[%clk 0:01:25.2]} 26... Rba8
{[%clk 0:00:57.9]} 27. Kb2 {[%clk 0:01:23.9]} 27... Rb8 {[%clk 0:00:58.1]} 28.
Ra1 {[%clk 0:01:22.8]} 28... Rxa1 {[%clk 0:00:51.1]} 29. Rxa1 {[%clk 0:01:24.7]}
29... Rb7 {[%clk 0:00:51.3]} 30. Ra5 {[%clk 0:01:18.9]} 30... f6 {[%clk
0:00:42.5]} 31. Bxc5 {[%clk 0:01:03.8]} 31... fxe5 {[%clk 0:00:41.9]} 32. Bxe7
{[%clk 0:01:02.8]} 1-0

[Event "*** Titled Tuesday Blitz"]
[Site "Chess.com"]
[Date "2019.01.01"]
[Round "2"]
[White "Martins-BR"]
[Black "IngOscarArdila"]
[Result "1-0"]
[WhiteElo "2220"]
[BlackElo "2082"]
[TimeControl "180+2"]
[EndTime "13:20:12 PST"]
[Termination "Martins-BR won by resignation"]

1. e4 {[%clk 0:03:01.9]} 1... e5 {[%clk 0:02:18.8]} 2. Nf3 {[%clk 0:03:02.2]}
2... Nf6 {[%clk 0:02:17.7]} 3. Nc3 {[%clk 0:03:02]} 3... Nc6 {[%clk 0:02:18.2]}
4. d4 {[%clk 0:03:02.2]} 4... exd4 {[%clk 0:02:17.9]} 5. Nxd4 {[%clk 0:03:02.8]}
5... Bb4 {[%clk 0:02:19.5]} 6. Nxc6 {[%clk 0:03:02.7]} 6... bxc6 {[%clk
0:02:20.6]} 7. Bd3 {[%clk 0:03:03.5]} 7... d5 {[%clk 0:02:21.6]} 8. exd5 {[%clk
0:03:05.4]} 8... cxd5 {[%clk 0:02:22.6]} 9. O-O {[%clk 0:03:06.2]} 9... O-O
{[%clk 0:02:22.9]} 10. h3 {[%clk 0:03:07]} 10... c6 {[%clk 0:02:23.2]} 11. Qf3
{[%clk 0:03:06.7]} 11... h6 {[%clk 0:02:23.4]} 12. Bf4 {[%clk 0:03:05.7]} 12...
Bd6 {[%clk 0:02:23.6]} 13. Rfe1 {[%clk 0:03:01.5]} 13... Be6 {[%clk 0:02:23.4]}
14. Ne2 {[%clk 0:02:54.8]} 14... Bxf4 {[%clk 0:02:18.2]} 15. Nxf4 {[%clk
0:02:54.7]} 15... Qd7 {[%clk 0:02:15.7]} 16. Rad1 {[%clk 0:02:48.4]} 16... Rae8
{[%clk 0:02:14.1]} 17. Nxe6 {[%clk 0:02:26.1]} 17... fxe6 {[%clk 0:02:11.6]} 18.
Qg3 {[%clk 0:02:19.3]} 18... Qe7 {[%clk 0:01:35.1]} 19. Re5 {[%clk 0:02:17]}
19... Nd7 {[%clk 0:01:32.6]} 20. Rh5 {[%clk 0:02:11.8]} 20... Qf6 {[%clk
0:01:20.3]} 21. b4 {[%clk 0:01:56.4]} 21... e5 {[%clk 0:01:20]} 22. Bg6 {[%clk
0:01:43.9]} 22... Rd8 {[%clk 0:01:09.3]} 23. a3 {[%clk 0:01:23.7]} 23... Qe7
{[%clk 0:00:57.6]} 24. Bf5 {[%clk 0:01:13.3]} 24... Rf6 {[%clk 0:00:20.6]} 25.
Bxd7 {[%clk 0:01:11.3]} 25... Rxd7 {[%clk 0:00:18.6]} 26. Rxe5 {[%clk
0:01:11.9]} 26... Qf7 {[%clk 0:00:19.7]} 27. Rde1 {[%clk 0:01:11.9]} 27... Rd8
{[%clk 0:00:20.3]} 28. Re7 {[%clk 0:01:11.9]} 28... Qf8 {[%clk 0:00:21.1]} 29.
Rxa7 {[%clk 0:01:08.2]} 29... Re8 {[%clk 0:00:20.9]} 30. Rxe8 {[%clk 0:01:07.9]}
1-0

[Event "*** Titled Tuesday Blitz"]
[Site "Chess.com"]
[Date "2019.01.01"]
[Round "2"]
[White "ramses135"]
[Black "Feegus"]
[Result "1-0"]
[WhiteElo "2473"]
[BlackElo "2398"]
[TimeControl "180+2"]
[EndTime "13:20:16 PST"]
[Termination "ramses135 won by resignation"]

1. e4 {[%clk 0:00:33.9]} 1... Nf6 {[%clk 0:03:01.9]} 2. e5 {[%clk 0:00:34.3]}
2... Ng8 {[%clk 0:03:03.7]} 3. d4 {[%clk 0:00:34.7]} 3... Nf6 {[%clk 0:03:05.6]}
4. exf6 {[%clk 0:00:35]} 4... gxf6 {[%clk 0:02:30.4]} 5. Nf3 {[%clk 0:00:30.1]}
5... e6 {[%clk 0:02:30.4]} 6. g3 {[%clk 0:00:31.3]} 6... d5 {[%clk 0:02:30.8]}
7. Bg2 {[%clk 0:00:33.2]} 7... c5 {[%clk 0:02:31.6]} 8. O-O {[%clk 0:00:35.1]}
8... Nc6 {[%clk 0:02:32.7]} 9. Be3 {[%clk 0:00:34.8]} 9... c4 {[%clk 0:02:32.3]}
10. b3 {[%clk 0:00:32.8]} 10... cxb3 {[%clk 0:02:25.2]} 11. axb3 {[%clk
0:00:34.7]} 11... h5 {[%clk 0:02:27]} 12. h4 {[%clk 0:00:27.7]} 12... Bd6 {[%clk
0:02:26.4]} 13. c4 {[%clk 0:00:27.9]} 13... b6 {[%clk 0:02:24.3]} 14. Nc3 {[%clk
0:00:19.6]} 14... Ne7 {[%clk 0:02:24.9]} 15. cxd5 {[%clk 0:00:17.2]} 15... exd5
{[%clk 0:02:25.6]} 16. Ne1 {[%clk 0:00:16.6]} 16... Be6 {[%clk 0:02:23.8]} 17.
Nd3 {[%clk 0:00:17.6]} 17... Rc8 {[%clk 0:02:24.8]} 18. Nb5 {[%clk 0:00:18.4]}
18... a5 {[%clk 0:02:25.7]} 19. Bf4 {[%clk 0:00:18.1]} 19... Bxf4 {[%clk
0:02:19.9]} 20. Nxf4 {[%clk 0:00:20]} 20... Bf5 {[%clk 0:02:17.9]} 21. Re1
{[%clk 0:00:19]} 21... Kf8 {[%clk 0:02:18.5]} 22. Qd2 {[%clk 0:00:16.7]} 22...
Qd7 {[%clk 0:02:19.2]} 23. Nc3 {[%clk 0:00:16.4]} 23... Qd6 {[%clk 0:02:08.5]}
24. Ncxd5 {[%clk 0:00:15.5]} 24... Rc2 {[%clk 0:02:08.3]} 25. Qe3 {[%clk
0:00:14.3]} 25... Nxd5 {[%clk 0:02:08]} 26. Nxd5 {[%clk 0:00:16.2]} 26... Kg7
{[%clk 0:02:08.8]} 27. Qf4 {[%clk 0:00:15.7]} 27... Qd7 {[%clk 0:02:03.7]} 28.
Nxb6 {[%clk 0:00:13.5]} 28... Qb5 {[%clk 0:02:02.2]} 29. Nd5 {[%clk 0:00:11.7]}
29... Bg6 {[%clk 0:01:59.7]} 30. Ne3 {[%clk 0:00:11.4]} 30... Rc7 {[%clk
0:01:57.1]} 31. Qxc7 {[%clk 0:00:11.2]} 31... Qxb3 {[%clk 0:01:53.8]} 32. Qxa5
{[%clk 0:00:11.9]} 32... Rd8 {[%clk 0:01:53.5]} 33. d5 {[%clk 0:00:12.9]} 33...
Rd6 {[%clk 0:01:51.7]} 34. Qa3 {[%clk 0:00:13.5]} 34... Qb6 {[%clk 0:01:52.2]}
35. Nc4 {[%clk 0:00:14.3]} 35... Qd8 {[%clk 0:01:49.4]} 36. Qxd6 {[%clk
0:00:14.5]} 1-0

[Event "*** Titled Tuesday Blitz"]
[Site "Chess.com"]
[Date "2019.01.01"]
[Round "2"]
[White "Siemba"]
[Black "MateusViageiro"]
[Result "0-1"]
[WhiteElo "2094"]
[BlackElo "2227"]
[TimeControl "180+2"]
[EndTime "13:20:19 PST"]
[Termination "MateusViageiro won by resignation"]

1. e4 {[%clk 0:03:01.9]} 1... c5 {[%clk 0:02:58.3]} 2. Nf3 {[%clk 0:03:02.6]}
2... d6 {[%clk 0:02:59.3]} 3. d4 {[%clk 0:03:02.7]} 3... cxd4 {[%clk 0:03:00.3]}
4. Nxd4 {[%clk 0:03:04.6]} 4... Nf6 {[%clk 0:03:01.6]} 5. Nc3 {[%clk 0:03:05.1]}
5... a6 {[%clk 0:03:02.8]} 6. Be3 {[%clk 0:03:05.5]} 6... e5 {[%clk 0:03:02.2]}
7. Nb3 {[%clk 0:03:06]} 7... Be6 {[%clk 0:03:03.6]} 8. f3 {[%clk 0:03:05]} 8...
Nbd7 {[%clk 0:03:03.5]} 9. Qd2 {[%clk 0:03:06.2]} 9... Rc8 {[%clk 0:03:04.2]}
10. O-O-O {[%clk 0:03:07.1]} 10... h5 {[%clk 0:03:04]} 11. Nd5 {[%clk 0:03:07]}
11... Nxd5 {[%clk 0:03:01.9]} 12. exd5 {[%clk 0:03:08.9]} 12... Bf5 {[%clk
0:03:02.8]} 13. Bd3 {[%clk 0:03:06.9]} 13... Bxd3 {[%clk 0:03:01.6]} 14. Qxd3
{[%clk 0:03:08.8]} 14... Be7 {[%clk 0:03:02.5]} 15. Kb1 {[%clk 0:03:07.6]} 15...
Nf6 {[%clk 0:02:57.5]} 16. Nd2 {[%clk 0:03:04.8]} 16... O-O {[%clk 0:02:57.3]}
17. Ne4 {[%clk 0:03:05.3]} 17... Nxe4 {[%clk 0:02:55.6]} 18. Qxe4 {[%clk
0:03:05.1]} 18... f5 {[%clk 0:02:55.9]} 19. Qd3 {[%clk 0:03:04.5]} 19... b5
{[%clk 0:02:54.9]} 20. f4 {[%clk 0:02:59.8]} 20... e4 {[%clk 0:02:54.2]} 21. Qd2
{[%clk 0:02:57.3]} 21... Bf6 {[%clk 0:02:45.5]} 22. Bd4 {[%clk 0:02:57.6]} 22...
Rc4 {[%clk 0:02:43]} 23. Qe3 {[%clk 0:02:35.1]} 23... Qc7 {[%clk 0:02:24.1]} 24.
Bxf6 {[%clk 0:02:25.8]} 24... Rxf6 {[%clk 0:02:24.5]} 25. c3 {[%clk 0:02:21.7]}
25... Rf8 {[%clk 0:02:18.1]} 26. h3 {[%clk 0:02:21.2]} 26... b4 {[%clk 0:02:17]}
27. cxb4 {[%clk 0:02:15.4]} 27... Rxb4 {[%clk 0:02:15.9]} 28. g4 {[%clk
0:02:10.6]} 28... Rfb8 {[%clk 0:02:13.1]} 29. Rh2 {[%clk 0:02:06.4]} 29... Qb7
{[%clk 0:02:06.9]} 30. b3 {[%clk 0:01:57.8]} 30... a5 {[%clk 0:02:02]} 31. Rd4
{[%clk 0:01:48.7]} 31... a4 {[%clk 0:01:56.6]} 32. Rxb4 {[%clk 0:01:37.1]} 32...
Qxb4 {[%clk 0:01:54.2]} 33. Kb2 {[%clk 0:01:37.5]} 33... a3+ {[%clk 0:01:52.4]}
34. Kb1 {[%clk 0:01:36.7]} 34... Rc8 {[%clk 0:01:51.6]} 35. gxf5 {[%clk
0:01:28.5]} 35... Rc3 {[%clk 0:01:51.9]} 36. Qe2 {[%clk 0:00:47.9]} 36... e3
{[%clk 0:01:48.5]} 37. Qf3 {[%clk 0:00:34]} 37... Qd4 {[%clk 0:01:43.3]} 38. f6
{[%clk 0:00:31.2]} 38... Qd3+ {[%clk 0:01:43.6]} 0-1